[Event "The Kvibergspelen 2024"]
[Site "Kviberg Park Hotel & Conference, Krutvagen 2, Gothenburg, Sweden"]
[Date "2024.09.07"]
[Round "6.12"]
[White "Mashhadi, Peyman"]
[Black "Svensson, Leif"]
[Result "1-0"]
[TimeControl "15 minutes + 5 seconds per move from move one (Round 1 - 4) / 90 minutes + 30 seconds per move from move one (Round 5 - 8)"]
[WhiteFideId "1768581"]
[BlackFideId "1702459"]
[WhiteElo "2148"]
[BlackElo "1990"]

1. e4 {[%clk 01:30:38]} {[%emt 00:00:34]} e5 {[%clk 01:31:11]} {[%emt
00:00:07]} 2. Nf3 {[%clk 01:30:49]} {[%emt 00:00:19]} Nc6 {[%clk 01:31:35]}
{[%emt 00:00:05]} 3. Bb5 {[%clk 01:31:04]} {[%emt 00:00:16]} Bc5 {[%clk
01:31:57]} {[%emt 00:00:08]} 4. O-O {[%clk 01:30:59]} {[%emt 00:00:35]} Nge7
{[%clk 01:31:44]} {[%emt 00:00:43]} 5. c3 {[%clk 01:30:39]} {[%emt 00:00:50]}
Bb6 {[%clk 01:24:37]} {[%emt 00:07:36]} 6. d4 {[%clk 01:27:39]} {[%emt
00:03:31]} exd4 {[%clk 01:23:53]} {[%emt 00:01:15]} 7. cxd4 {[%clk 01:26:11]}
{[%emt 00:01:56]} d5 {[%clk 01:23:26]} {[%emt 00:00:58]} 8. exd5 {[%clk
01:25:41]} {[%emt 00:01:00]} Nxd5 {[%clk 01:20:48]} {[%emt 00:03:06]} 9. Re1+
{[%clk 01:18:09]} {[%emt 00:08:03]} Be6 {[%clk 01:21:15]} {[%emt 00:00:04]} 10.
Ne5 {[%clk 01:13:38]} {[%emt 00:05:02]} Qd6 {[%clk 01:17:42]} {[%emt 00:04:01]}
11. Na3 {[%clk 01:05:10]} {[%emt 00:08:58]} O-O {[%clk 01:16:02]} {[%emt
00:02:10]} 12. Nac4 {[%clk 01:04:11]} {[%emt 00:01:29]} Qb4 {[%clk 01:16:04]}
{[%emt 00:00:27]} 13. Bxc6 {[%clk 01:03:26]} {[%emt 00:01:16]} bxc6 {[%clk
01:15:19]} {[%emt 00:01:16]} 14. a3 {[%clk 01:02:34]} {[%emt 00:01:22]} Qe7
{[%clk 01:09:54]} {[%emt 00:05:55]} 15. Nxc6 {[%clk 01:01:21]} {[%emt
00:01:43]} Qh4 {[%clk 01:10:11]} {[%emt 00:00:12]} 16. N4e5 {[%clk 01:00:28]}
{[%emt 00:01:23]} Rfe8 {[%clk 01:08:23]} {[%emt 00:02:19]} 17. a4 {[%clk
00:53:00]} {[%emt 00:07:57]} a5 {[%clk 01:08:27]} {[%emt 00:00:27]} 18. Nf3
{[%clk 00:50:09]} {[%emt 00:03:20]} Qh5 {[%clk 01:08:18]} {[%emt 00:00:39]} 19.
Re5 {[%clk 00:49:38]} {[%emt 00:01:01]} f5 {[%clk 01:06:09]} {[%emt 00:02:40]}
20. Bd2 {[%clk 00:47:35]} {[%emt 00:02:32]} Bd7 {[%clk 01:00:08]} {[%emt
00:06:32]} 21. Qc2 {[%clk 00:47:29]} {[%emt 00:00:36]} Nf6 {[%clk 00:57:04]}
{[%emt 00:03:34]} 22. Rae1 {[%clk 00:38:42]} {[%emt 00:09:16]} h6 {[%clk
00:54:30]} {[%emt 00:03:04]} 23. h3 {[%clk 00:38:47]} {[%emt 00:00:26]} Qf7
{[%clk 00:54:31]} {[%emt 00:00:29]} 24. Re7 {[%clk 00:36:40]} {[%emt 00:02:37]}
Qf8 {[%clk 00:51:14]} {[%emt 00:03:46]} 25. Nh4 {[%clk 00:31:20]} {[%emt
00:05:50]} Rxe7 {[%clk 00:43:02]} {[%emt 00:08:43]} 26. Nxe7+ {[%clk 00:31:07]}
{[%emt 00:00:42]} 1-0

[Event "The Kvibergspelen 2024"]
[Site "Kviberg Park Hotel & Conference, Krutvagen 2, Gothenburg, Sweden"]
[Date "2024.09.07"]
[Round "6.13"]
[White "Rajcevski, Dejan"]
[Black "Bengtsson, Siv"]
[Result "1/2-1/2"]
[TimeControl "15 minutes + 5 seconds per move from move one (Round 1 - 4) / 90 minutes + 30 seconds per move from move one (Round 5 - 8)"]
[WhiteFideId "1759027"]
[BlackFideId "1701673"]
[WhiteElo "2131"]
[BlackElo "1972"]

1. d4 {[%clk 01:30:59]} {[%emt 00:00:02]} Nf6 {[%clk 01:30:56]} {[%emt
00:00:04]} 2. Bf4 {[%clk 01:31:26]} {[%emt 00:00:03]} g6 {[%clk 01:30:30]}
{[%emt 00:00:56]} 3. Nc3 {[%clk 01:31:50]} {[%emt 00:00:05]} d5 {[%clk
01:30:16]} {[%emt 00:00:44]} 4. Qd2 {[%clk 01:32:14]} {[%emt 00:00:07]} Bg7
{[%clk 01:27:26]} {[%emt 00:03:19]} 5. O-O-O {[%clk 01:32:26]} {[%emt
00:00:17]} h6 {[%clk 01:23:38]} {[%emt 00:04:19]} 6. f3 {[%clk 01:32:44]}
{[%emt 00:00:13]} g5 {[%clk 01:21:07]} {[%emt 00:03:00]} 7. Bg3 {[%emt
00:00:08]} Bf5 {[%emt 00:01:12]} 8. e3 {[%clk 01:21:31]} {[%emt 00:10:23]} e6
{[%clk 01:18:20]} {[%emt 00:03:18]} 9. Bd3 {[%clk 01:17:43]} {[%emt 00:04:18]}
Bxd3 {[%clk 01:13:44]} {[%emt 00:05:05]} 10. Qxd3 {[%clk 01:17:57]} {[%emt
00:00:16]} Nc6 {[%clk 01:07:40]} {[%emt 00:06:34]} 11. Nge2 {[%clk 01:15:04]}
{[%emt 00:03:22]} h5 {[%clk 01:02:47]} {[%emt 00:05:24]} 12. h3 {[%clk
01:13:37]} {[%emt 00:01:56]} Qd7 {[%clk 01:01:39]} {[%emt 00:01:38]} 13. Na4
{[%clk 01:11:00]} {[%emt 00:03:07]} b6 {[%clk 00:57:44]} {[%emt 00:04:25]} 14.
Kb1 {[%clk 01:05:36]} {[%emt 00:05:55]} Ne7 {[%clk 00:56:19]} {[%emt 00:01:55]}
15. b3 {[%clk 01:03:03]} {[%emt 00:03:03]} Rc8 {[%clk 00:54:46]} {[%emt
00:02:03]} 16. Nac3 {[%clk 00:53:05]} {[%emt 00:10:28]} c5 {[%clk 00:52:41]}
{[%emt 00:02:34]} 17. Qb5 {[%clk 00:53:04]} {[%emt 00:00:32]} O-O {[%clk
00:48:43]} {[%emt 00:04:28]} 18. Qxd7 {[%clk 00:52:59]} {[%emt 00:00:36]} Nxd7
{[%clk 00:49:07]} {[%emt 00:00:05]} 19. Bd6 {[%clk 00:50:19]} {[%emt 00:03:10]}
Rfe8 {[%clk 00:49:08]} {[%emt 00:00:29]} 20. Bxe7 {[%clk 00:49:38]} {[%emt
00:01:11]} Rxe7 {[%clk 00:49:31]} {[%emt 00:00:06]} 21. h4 {[%clk 00:49:57]}
{[%emt 00:00:12]} g4 {[%clk 00:47:53]} {[%emt 00:02:09]} 22. Na4 {[%clk
00:47:21]} {[%emt 00:03:06]} f5 {[%clk 00:44:44]} {[%emt 00:03:38]} 23. Nb2
{[%clk 00:47:14]} {[%emt 00:00:38]} Bh6 {[%clk 00:42:52]} {[%emt 00:02:22]} 24.
f4 {[%clk 00:45:24]} {[%emt 00:02:19]} Nf6 {[%clk 00:42:08]} {[%emt 00:01:13]}
25. Ng3 {[%clk 00:45:42]} {[%emt 00:00:13]} cxd4 {[%clk 00:39:27]} {[%emt
00:03:10]} 26. Rxd4 {[%clk 00:45:35]} {[%emt 00:00:37]} Bg7 {[%clk 00:37:01]}
{[%emt 00:02:57]} 27. Rd2 {[%clk 00:44:32]} {[%emt 00:01:33]} Rc3 {[%clk
00:28:13]} {[%emt 00:09:17]} 28. Nd1 {[%clk 00:42:03]} {[%emt 00:03:00]} Rc6
{[%clk 00:28:14]} {[%emt 00:00:28]} 29. Nf2 {[%clk 00:37:38]} {[%emt 00:04:55]}
Rc3 {[%clk 00:27:16]} {[%emt 00:01:28]} 30. Re2 {[%clk 00:36:47]} {[%emt
00:01:22]} Rec7 {[%clk 00:25:36]} {[%emt 00:02:10]} 31. Rd1 {[%clk 00:36:54]}
{[%emt 00:00:23]} Kh7 {[%clk 00:20:45]} {[%emt 00:05:20]} 32. Rd3 {[%clk
00:36:11]} {[%emt 00:01:14]} Kg6 {[%clk 00:19:10]} {[%emt 00:02:04]} 33. Nd1
{[%clk 00:34:30]} {[%emt 00:02:12]} R3c6 {[%clk 00:19:07]} {[%emt 00:00:32]} 34.
Nb2 {[%clk 00:28:11]} {[%emt 00:06:50]} Ne8 {[%clk 00:15:16]} {[%emt 00:04:21]}
35. Rd1 {[%clk 00:22:37]} {[%emt 00:06:04]} Nd6 {[%clk 00:15:15]} {[%emt
00:00:31]} 36. a4 {[%clk 00:22:42]} {[%emt 00:00:26]} Bf6 {[%clk 00:15:02]}
{[%emt 00:00:42]} 37. Rh1 {[%clk 00:22:34]} {[%emt 00:00:38]} Rc3 {[%clk
00:13:43]} {[%emt 00:01:48]} 38. Nd1 {[%clk 00:18:18]} {[%emt 00:04:47]} R3c6
{[%clk 00:14:04]} {[%emt 00:00:08]} 39. Nb2 {[%clk 00:18:10]} {[%emt 00:00:39]}
Rc3 {[%clk 00:14:19]} {[%emt 00:00:14]} 40. Nd1 {[%clk 00:14:39]} {[%emt
00:04:02]} R3c6 {[%clk 00:14:41]} {[%emt 00:00:08]} 41. Nb2 {[%clk 00:14:57]}
{[%emt 00:00:12]} 1/2-1/2

[Event "The Kvibergspelen 2024"]
[Site "Kviberg Park Hotel & Conference, Krutvagen 2, Gothenburg, Sweden"]
[Date "2024.09.07"]
[Round "6.14"]
[White "Sandberg, Lucas"]
[Black "Nilsson, Patrik"]
[Result "1/2-1/2"]
[TimeControl "15 minutes + 5 seconds per move from move one (Round 1 - 4) / 90 minutes + 30 seconds per move from move one (Round 5 - 8)"]
[WhiteFideId "1773712"]
[BlackFideId "1708171"]
[WhiteElo "1887"]
[BlackElo "2124"]

1. Nf3 {[%clk 01:30:39]} {[%emt 00:00:20]} f5 {[%clk 01:30:49]} {[%emt
00:00:12]} 2. d4 {[%clk 01:30:21]} {[%emt 00:00:47]} Nf6 {[%clk 01:30:58]}
{[%emt 00:00:21]} 3. c4 {[%clk 01:30:30]} {[%emt 00:00:22]} g6 {[%clk
01:31:15]} {[%emt 00:00:13]} 4. Nc3 {[%clk 01:30:39]} {[%emt 00:00:20]} Bg7
{[%clk 01:31:33]} {[%emt 00:00:11]} 5. e3 {[%clk 01:30:10]} {[%emt 00:01:00]}
O-O {[%clk 01:29:19]} {[%emt 00:02:45]} 6. Be2 {[%clk 01:29:19]} {[%emt
00:01:20]} c6 {[%clk 01:27:58]} {[%emt 00:01:52]} 7. O-O {[%clk 01:29:39]}
{[%emt 00:00:10]} d5 {[%clk 01:27:35]} {[%emt 00:00:52]} 8. Qb3 {[%clk
01:28:36]} {[%emt 00:01:33]} e6 {[%clk 01:26:52]} {[%emt 00:01:13]} 9. Qa3
{[%clk 01:26:51]} {[%emt 00:02:15]} Nbd7 {[%clk 01:21:44]} {[%emt 00:05:39]} 10.
Qd6 {[%clk 01:25:43]} {[%emt 00:01:37]} Ne4 {[%clk 01:10:17]} {[%emt 00:11:58]}
11. Nxe4 {[%clk 01:25:34]} {[%emt 00:00:38]} fxe4 {[%clk 01:09:44]} {[%emt
00:01:04]} 12. Ne1 {[%clk 01:24:26]} {[%emt 00:01:37]} e5 {[%clk 00:54:04]}
{[%emt 00:16:11]} 13. dxe5 {[%clk 01:17:22]} {[%emt 00:07:34]} Nxe5 {[%clk
00:48:25]} {[%emt 00:06:10]} 14. Qxd8 {[%clk 01:17:33]} {[%emt 00:00:17]} Rxd8
{[%clk 00:48:51]} {[%emt 00:00:05]} 15. cxd5 {[%clk 01:17:17]} {[%emt
00:00:46]} cxd5 {[%clk 00:46:46]} {[%emt 00:02:35]} 16. Nc2 {[%clk 01:14:36]}
{[%emt 00:03:10]} Nc6 {[%clk 00:45:10]} {[%emt 00:02:07]} 17. Rb1 {[%clk
01:13:30]} {[%emt 00:01:35]} Bf5 {[%clk 00:43:40]} {[%emt 00:02:01]} 18. b4
{[%clk 01:10:01]} {[%emt 00:03:57]} d4 {[%clk 00:38:35]} {[%emt 00:05:37]} 19.
Bc4+ {[%clk 01:09:41]} {[%emt 00:00:49]} Kh8 {[%clk 00:38:47]} {[%emt
00:00:19]} 20. Nxd4 {[%clk 01:09:55]} {[%emt 00:00:15]} Nxd4 {[%clk 00:37:16]}
{[%emt 00:02:02]} 21. exd4 {[%clk 01:10:15]} {[%emt 00:00:10]} Rac8 {[%clk
00:35:15]} {[%emt 00:02:30]} 22. Be2 {[%clk 01:09:24]} {[%emt 00:01:21]} e3
{[%clk 00:35:35]} {[%emt 00:00:11]} 23. Rb3 {[%clk 01:09:33]} {[%emt 00:00:21]}
exf2+ {[%clk 00:35:43]} {[%emt 00:00:21]} 24. Kxf2 {[%clk 01:09:50]} {[%emt
00:00:13]} Rc2 {[%clk 00:31:52]} {[%emt 00:04:21]} 25. Rd1 {[%clk 01:00:00]}
{[%emt 00:10:19]} Bxd4+ {[%clk 00:24:31]} {[%emt 00:07:51]} 26. Rxd4 {[%clk
01:00:12]} {[%emt 00:00:21]} Rxd4 {[%clk 00:22:57]} {[%emt 00:02:04]} 27. Bb2
{[%clk 01:00:36]} {[%emt 00:00:05]} Rxb2 {[%clk 00:23:10]} {[%emt 00:00:18]} 28.
Rxb2 {[%clk 01:01:04]} Kg7 {[%clk 00:23:26]} {[%emt 00:00:13]} 29. Ke3 {[%clk
01:00:37]} {[%emt 00:00:57]} Rh4 {[%clk 00:21:13]} {[%emt 00:02:44]} 30. h3
{[%clk 01:00:49]} {[%emt 00:00:17]} Kf6 {[%clk 00:21:24]} {[%emt 00:00:19]} 31.
a3 {[%clk 00:57:32]} {[%emt 00:03:47]} Ke5 {[%clk 00:21:00]} {[%emt 00:00:55]}
32. Rd2 {[%clk 00:57:30]} {[%emt 00:00:31]} Re4+ {[%clk 00:21:18]} {[%emt
00:00:12]} 33. Kf3 {[%clk 00:57:26]} {[%emt 00:00:34]} Rd4 {[%clk 00:21:17]}
{[%emt 00:00:32]} 34. Rxd4 {[%clk 00:57:30]} {[%emt 00:00:26]} Kxd4 {[%clk
00:21:38]} {[%emt 00:00:09]} 35. Kf4 {[%clk 00:57:38]} {[%emt 00:00:21]} h6
{[%clk 00:20:35]} {[%emt 00:01:33]} 36. g4 {[%clk 00:55:39]} {[%emt 00:02:30]}
Bd7 {[%clk 00:20:13]} {[%emt 00:00:49]} 37. h4 {[%clk 00:56:00]} {[%emt
00:00:11]} b6 {[%clk 00:17:38]} {[%emt 00:03:06]} 38. g5 {[%clk 00:55:55]}
{[%emt 00:00:35]} h5 {[%clk 00:14:03]} {[%emt 00:04:05]} 39. Bd1 {[%clk
00:55:08]} {[%emt 00:01:16]} Be8 {[%clk 00:10:12]} {[%emt 00:04:22]} 40. Bf3
{[%clk 00:54:56]} {[%emt 00:00:41]} 1/2-1/2

[Event "The Kvibergspelen 2024"]
[Site "Kviberg Park Hotel & Conference, Krutvagen 2, Gothenburg, Sweden"]
[Date "2024.09.07"]
[Round "6.15"]
[White "Ask, Josef"]
[Black "Dingertz, Gustav"]
[Result "1-0"]
[TimeControl "15 minutes + 5 seconds per move from move one (Round 1 - 4) / 90 minutes + 30 seconds per move from move one (Round 5 - 8)"]
[WhiteTitle "FM"]
[WhiteFideId "1704583"]
[BlackFideId "1767917"]
[WhiteElo "2106"]
[BlackElo "1938"]

1. b3 {[%clk 01:30:57]} {[%emt 00:00:02]} d5 {[%clk 01:30:36]} {[%emt
00:00:25]} 2. Bb2 {[%clk 01:31:16]} {[%emt 00:00:11]} Bf5 {[%clk 01:31:00]}
{[%emt 00:00:06]} 3. f4 {[%clk 01:31:04]} {[%emt 00:00:42]} e6 {[%clk
01:31:02]} {[%emt 00:00:28]} 4. Nf3 {[%clk 01:31:17]} {[%emt 00:00:17]} Nf6
{[%clk 01:31:00]} {[%emt 00:00:31]} 5. e3 {[%clk 01:30:35]} {[%emt 00:01:12]}
Nbd7 {[%clk 01:28:25]} {[%emt 00:03:05]} 6. Be2 {[%clk 01:30:28]} {[%emt
00:00:38]} h5 {[%clk 01:19:13]} {[%emt 00:09:42]} 7. O-O {[%clk 01:28:22]}
{[%emt 00:02:36]} c6 {[%clk 01:18:01]} {[%emt 00:01:42]} 8. Ne5 {[%clk
01:13:26]} {[%emt 00:15:26]} h4 {[%clk 01:15:41]} {[%emt 00:02:50]} 9. Bf3
{[%clk 01:08:26]} {[%emt 00:05:30]} Qc7 {[%clk 01:13:04]} {[%emt 00:03:06]} 10.
d3 {[%clk 01:05:25]} {[%emt 00:03:32]} Bd6 {[%clk 00:56:58]} {[%emt 00:16:35]}
11. d4 {[%clk 01:03:43]} {[%emt 00:02:13]} Ne4 {[%clk 00:53:54]} {[%emt
00:03:33]} 12. c4 {[%clk 00:57:48]} {[%emt 00:06:27]} Nf8 {[%clk 00:35:54]}
{[%emt 00:18:29]} 13. Nc3 {[%clk 00:54:00]} {[%emt 00:04:18]} f6 {[%clk
00:31:50]} {[%emt 00:04:34]} 14. Ng4 {[%clk 00:52:02]} {[%emt 00:02:28]} O-O-O
{[%clk 00:30:22]} {[%emt 00:01:58]} 15. Rc1 {[%clk 00:49:49]} {[%emt 00:02:43]}
Qf7 {[%clk 00:27:23]} {[%emt 00:03:28]} 16. cxd5 {[%clk 00:48:07]} {[%emt
00:02:13]} exd5 {[%clk 00:27:40]} {[%emt 00:00:12]} 17. h3 {[%clk 00:42:25]}
{[%emt 00:06:12]} Kb8 {[%clk 00:26:07]} {[%emt 00:02:03]} 18. a3 {[%clk
00:39:37]} {[%emt 00:03:19]} Re8 {[%clk 00:23:11]} {[%emt 00:03:26]} 19. b4
{[%clk 00:37:55]} {[%emt 00:02:12]} Nxc3 {[%clk 00:19:45]} {[%emt 00:03:55]} 20.
Rxc3 {[%clk 00:38:04]} {[%emt 00:00:21]} a6 {[%clk 00:19:42]} {[%emt 00:00:34]}
21. Qb3 {[%clk 00:35:56]} {[%emt 00:02:38]} Ne6 {[%clk 00:15:49]} {[%emt
00:04:23]} 22. a4 {[%clk 00:34:45]} {[%emt 00:01:41]} Nc7 {[%clk 00:16:08]}
{[%emt 00:00:11]} 23. Be2 {[%clk 00:30:44]} {[%emt 00:04:32]} Bd7 {[%clk
00:14:07]} {[%emt 00:02:30]} 24. Ba3 {[%clk 00:26:23]} {[%emt 00:04:52]} b5
{[%clk 00:12:53]} {[%emt 00:01:43]} 25. Rfc1 {[%clk 00:24:47]} {[%emt
00:02:05]} Kb7 {[%clk 00:11:51]} {[%emt 00:01:32]} 26. Qc2 {[%clk 00:23:45]}
{[%emt 00:01:33]} Qe7 {[%clk 00:09:17]} {[%emt 00:03:03]} 27. Bf3 {[%clk
00:17:17]} {[%emt 00:06:58]} Rhg8 {[%clk 00:06:48]} {[%emt 00:03:00]} 28. Kh1
{[%clk 00:16:07]} {[%emt 00:01:40]} Rc8 {[%clk 00:05:26]} {[%emt 00:01:52]} 29.
Rxc6 {[%clk 00:13:12]} {[%emt 00:03:26]} Bxc6 {[%clk 00:05:13]} {[%emt
00:00:42]} 30. Qxc6+ {[%clk 00:13:37]} {[%emt 00:00:05]} Ka7 {[%clk 00:05:24]}
{[%emt 00:00:18]} 31. a5 {[%clk 00:10:36]} {[%emt 00:03:31]} Rb8 {[%clk
00:05:07]} {[%emt 00:00:47]} 32. Ne5 {[%clk 00:08:53]} {[%emt 00:02:14]} fxe5
{[%clk 00:04:55]} {[%emt 00:00:42]} 33. dxe5 {[%clk 00:08:37]} {[%emt
00:00:46]} Bxe5 {[%clk 00:05:20]} {[%emt 00:00:05]} 34. fxe5 {[%clk 00:08:56]}
{[%emt 00:00:11]} Rb7 {[%clk 00:05:40]} {[%emt 00:00:10]} 35. Bb2 {[%clk
00:08:44]} {[%emt 00:00:42]} Rd8 {[%clk 00:02:51]} {[%emt 00:03:20]} 36. Bd4+
{[%clk 00:08:35]} {[%emt 00:00:38]} Kb8 {[%clk 00:02:51]} {[%emt 00:00:30]} 37.
Bg4 {[%clk 00:06:14]} {[%emt 00:02:50]} Qe8 {[%clk 00:02:02]} {[%emt 00:01:20]}
38. e6 {[%clk 00:04:48]} {[%emt 00:01:56]} Qe7 {[%clk 00:01:00]} {[%emt
00:01:32]} 39. Be5 {[%clk 00:04:27]} {[%emt 00:00:51]} Rc8 {[%clk 00:00:41]}
{[%emt 00:00:49]} 40. Bd6 {[%clk 00:04:29]} {[%emt 00:00:28]} Qg5 {[%clk
00:00:32]} {[%emt 00:00:39]} 41. e7 {[%clk 00:04:25]} {[%emt 00:00:34]} Qxe3
{[%clk 00:00:31]} {[%emt 00:00:33]} 42. Bxc8 {[%clk 00:04:34]} {[%emt
00:00:19]} 1-0

[Event "The Kvibergspelen 2024"]
[Site "Kviberg Park Hotel & Conference, Krutvagen 2, Gothenburg, Sweden"]
[Date "2024.09.07"]
[Round "6.16"]
[White "Nilsson, Oliver"]
[Black "Helin, Mikael"]
[Result "1-0"]
[TimeControl "15 minutes + 5 seconds per move from move one (Round 1 - 4) / 90 minutes + 30 seconds per move from move one (Round 5 - 8)"]
[BlackTitle "CM"]
[WhiteFideId "1730177"]
[BlackFideId "1703838"]
[WhiteElo "2050"]
[BlackElo "1921"]

1. e4 {[%clk 01:26:59]} {[%emt 00:03:54]} d6 {[%clk 01:30:47]} {[%emt
00:00:20]} 2. d4 {[%clk 01:27:22]} {[%emt 00:00:07]} Nf6 {[%clk 01:31:01]}
{[%emt 00:00:16]} 3. Nc3 {[%clk 01:27:47]} {[%emt 00:00:05]} Nbd7 {[%clk
01:31:24]} {[%emt 00:00:06]} 4. Nf3 {[%clk 01:27:52]} {[%emt 00:00:26]} e5
{[%clk 01:31:47]} {[%emt 00:00:07]} 5. g3 {[%clk 01:28:18]} {[%emt 00:00:04]}
Be7 {[%clk 01:32:02]} {[%emt 00:00:15]} 6. Bg2 {[%clk 01:28:45]} {[%emt
00:00:03]} c6 {[%clk 01:32:26]} {[%emt 00:00:06]} 7. a4 {[%clk 01:28:57]}
{[%emt 00:00:19]} a5 {[%clk 01:32:55]} {[%emt 00:00:01]} 8. O-O {[%clk
01:29:14]} {[%emt 00:00:12]} h6 {[%clk 01:33:09]} {[%emt 00:00:15]} 9. Re1
{[%clk 01:29:26]} {[%emt 00:00:18]} Qc7 {[%clk 01:33:29]} {[%emt 00:00:10]} 10.
b3 {[%clk 01:29:40]} {[%emt 00:00:18]} g5 {[%clk 01:31:00]} {[%emt 00:02:56]}
11. Bb2 {[%clk 01:29:59]} {[%emt 00:00:13]} Nf8 {[%clk 01:30:36]} {[%emt
00:00:54]} 12. dxe5 {[%clk 01:29:04]} {[%emt 00:01:26]} dxe5 {[%clk 01:31:04]}
{[%emt 00:00:01]} 13. Nxe5 {[%clk 01:29:00]} {[%emt 00:00:33]} Rg8 {[%clk
01:29:38]} {[%emt 00:01:55]} 14. Nc4 {[%clk 01:24:43]} {[%emt 00:04:48]} Be6
{[%clk 01:28:56]} {[%emt 00:01:12]} 15. e5 {[%clk 01:23:46]} {[%emt 00:01:28]}
Ng4 {[%clk 01:26:10]} {[%emt 00:03:14]} 16. Nd6+ {[%clk 01:23:15]} {[%emt
00:01:03]} Bxd6 {[%clk 01:24:36]} {[%emt 00:02:04]} 17. exd6 {[%clk 01:23:40]}
{[%emt 00:00:05]} Qd7 {[%clk 01:21:40]} {[%emt 00:03:26]} 18. Qxg4 {[%clk
01:23:58]} {[%emt 00:00:11]} O-O-O {[%clk 01:22:07]} {[%emt 00:00:03]} 19. Qd4
{[%clk 01:24:01]} {[%emt 00:00:28]} Kb8 {[%clk 01:22:14]} {[%emt 00:00:23]} 20.
Ne4 {[%clk 01:23:40]} {[%emt 00:00:50]} Rg6 {[%clk 01:21:28]} {[%emt 00:01:16]}
21. Rad1 {[%clk 01:23:48]} {[%emt 00:00:23]} Bd5 {[%clk 01:21:03]} {[%emt
00:00:55]} 22. Qb6 {[%clk 01:22:32]} {[%emt 00:01:46]} Ne6 {[%clk 01:14:39]}
{[%emt 00:06:54]} 23. Nf6 {[%clk 01:22:18]} {[%emt 00:00:44]} Rxf6 {[%clk
01:03:57]} {[%emt 00:11:12]} 24. Bxf6 {[%clk 01:22:43]} {[%emt 00:00:04]} Rg8
{[%clk 01:04:18]} {[%emt 00:00:08]} 25. Bxd5 {[%clk 01:22:26]} {[%emt
00:00:49]} cxd5 {[%clk 01:04:08]} {[%emt 00:00:39]} 26. Rxd5 {[%clk 01:22:24]}
{[%emt 00:00:32]} Rg6 {[%clk 00:55:51]} {[%emt 00:08:47]} 27. Rxa5 {[%clk
01:22:01]} {[%emt 00:00:53]} Qc6 {[%clk 00:51:35]} {[%emt 00:04:46]} 28. Rxe6
{[%clk 01:22:06]} {[%emt 00:00:26]} fxe6 {[%clk 00:45:10]} {[%emt 00:06:55]} 29.
Qa7+ {[%clk 01:22:28]} {[%emt 00:00:07]} 1-0